bitfinex/quotes_SOLUSD_20220129
["timestamp","ask_amount","ask_price","bid_price","bid_amount"]
[1643458392146,23.958,96.26,96.194,0.25]
[1643458392549,6.0,96.25,96.194,0.25]
[1643458392747,23.958,96.26,96.194,0.25]
[1643458393047,0.25,96.249,96.194,0.25]
[1643458394047,0.25,96.259,96.194,0.25]
[1643458394646,0.25,96.259,96.193,2.81473875]
[1643458394848,6.0,96.25,96.193,2.81473875]
[1643458395248,0.25,96.249,96.193,2.81473875]
[1643458396252,0.25,96.259,96.193,2.81473875]
[1643458397353,0.25,96.26,96.194,0.25]
[1643458397754,0.25,96.26,96.195,2.81473875]
[1643458397955,0.25,96.26,96.196,16.31181482]
[1643458398155,0.25,96.26,96.2,14.96]
[1643458400964,0.25,96.26,96.195,2.81473875]
[1643458401563,6.0,96.251,96.195,2.81473875]
[1643458401762,0.25,96.25,96.195,2.81473875]
[1643458401962,0.25,96.25,96.187,1.4304253]
[1643458402162,0.25,96.25,96.174,1.4304253]
[1643458402364,65.0,96.248,96.144,2.88057764]
[1643458402563,6.0,96.238,96.144,2.88057764]
[1643458402764,103.7,96.236,96.144,2.88057764]
[1643458402968,103.7,96.236,96.141,2.88815659]
[1643458403170,6.0,96.226,96.123,2.88057764]
[1643458403364,44.27654842,96.225,96.127,2.88057764]
[1643458403667,109.7,96.215,96.128,2.88837092]
[1643458403865,0.25,96.214,96.129,0.25]
[1643458404265,0.25,96.214,96.13,2.88837092]
[1643458404867,0.25,96.214,96.124,16.30056329]
[1643458405466,0.25,96.214,96.115,15.5034]
[1643458406466,0.25,96.214,96.116,17.17163404]
[1643458407068,45.98699458,96.209,96.116,17.17163404]
[1643458407269,6.0,96.205,96.117,0.25]
[1643458407469,6.0,96.199,96.117,0.25]
[1643458407875,0.25,96.198,96.115,15.5034]
[1643458408071,6.25,96.198,96.115,15.5034]
[1643458408678,103.7,96.197,96.115,15.5034]
[1643458408880,0.25,96.196,96.102,473.64099354]
[1643458409078,36.85434421,96.186,96.102,473.64099354]
[1643458409491,6.0,96.176,96.102,473.64099354]
[1643458409691,6.0,96.176,96.103,0.25]
[1643458410692,0.25,96.175,96.103,0.25]
[1643458410893,0.25,96.175,96.1,14.96]
[1643458411094,6.25,96.175,96.1,14.96]
[1643458411893,6.0,96.174,96.1,14.96]
[1643458412095,6.0,96.165,96.1,14.96]
[1643458412393,46.99423172,96.164,96.1,14.96]
[1643458412594,6.0,96.154,96.1,14.96]
[1643458412794,0.25,96.153,96.1,14.96]
[1643458415799,0.25,96.153,96.08,62.2556]
[1643458415999,0.25,96.153,96.081,0.25]
[1643458416202,0.25,96.153,96.07,14.96]
[1643458416402,0.25,96.153,96.07,4.60851854]
[1643458416403,6.25,96.153,96.07,4.60851854]
[1643458416613,6.0,96.151,96.048,522.57396905]
[1643458416799,0.25,96.15,96.048,522.57396905]
[1643458417000,6.0,96.142,96.048,522.57396905]
[1643458417200,23.4335,96.141,96.048,522.57396905]
[1643458417400,15.619,96.13,96.048,522.57396905]
[1643458417602,6.0,96.12,96.048,522.57396905]
[1643458417799,0.25,96.119,96.048,522.57396905]
[1643458418000,109.7,96.118,96.048,522.57396905]
[1643458418402,15.624,96.1,96.048,496.53593363]
[1643458418602,6.0,96.09,96.048,496.53593363]
[1643458418801,65.0,96.077,95.964,2.88057764]
[1643458419000,6.0,96.067,95.964,2.88057764]
[1643458419207,0.25,96.076,95.965,43.01009343]
[1643458419402,6.0,96.067,95.98,14.96]
[1643458419603,6.0,96.057,95.98,14.96]
[1643458420003,6.0,96.057,95.981,17.19128448]
[1643458420205,15.63,96.06,95.982,46.74884307]
[1643458420404,6.0,96.05,95.982,46.99884307]
[1643458420604,6.0,96.05,95.982,49.80565293]
[1643458420805,0.25,96.049,95.983,2.80680986]
[1643458421206,6.0,96.069,95.984,0.25]
[1643458421406,6.0,96.069,95.99,14.96]
[1643458421709,6.0,96.079,95.99,14.96]
[1643458422005,6.0,96.079,95.991,3.06850861]
[1643458422207,6.0,96.079,95.991,2.81850861]
[1643458422506,6.0,96.072,95.992,2.81850861]
[1643458422904,0.25,96.071,95.992,2.81850861]
[1643458424507,0.25,96.071,95.99,14.96]
[1643458424908,6.0,96.07,95.99,14.96]
[1643458425106,6.0,96.07,95.991,2.81850861]
[1643458425307,6.0,96.07,95.991,3.06850861]
[1643458425508,6.0,96.079,95.991,3.06850861]
[1643458425706,6.0,96.079,95.992,2.81850861]
[1643458425907,7.63371947,96.078,95.99,14.96]
[1643458426107,6.0,96.068,95.99,14.96]
[1643458426307,0.25,96.067,95.991,2.81850861]
[1643458427011,0.25,96.078,95.991,2.81850861]
[1643458427209,8.42090501,96.078,95.991,2.81850861]
[1643458427608,6.0,96.068,95.991,2.81850861]
[1643458427809,0.25,96.067,95.991,2.81850861]
[1643458428708,0.25,96.067,95.99,14.96]
[1643458431313,0.25,96.067,95.982,46.74884307]
[1643458431514,15.629,96.06,95.982,46.74884307]
[1643458431713,1.30410581,96.059,95.982,46.74884307]
[1643458431913,6.0,96.05,95.982,46.74884307]
[1643458432118,6.0,96.049,95.982,46.74884307]
[1643458432514,0.25,96.048,95.982,46.74884307]
[1643458433714,0.25,96.048,95.95,14.96]
[1643458433915,0.25,96.048,95.949,2.81101191]
[1643458434719,0.25,96.048,95.95,46.05743786]
[1643458434916,6.67641899,96.039,95.95,46.05743786]
[1643458435117,6.0,96.029,95.95,46.05743786]
[1643458435317,0.25,96.028,95.95,46.05743786]
[1643458436116,2.79859183,96.019,95.95,46.05743786]
[1643458436316,0.25,96.018,95.95,46.05743786]
[1643458436520,6.0,96.009,95.95,46.05743786]
[1643458436923,6.0,96.009,95.949,2.81101191]
[1643458436924,3.20669142,96.008,95.92,14.96]
[1643458437118,6.0,95.998,95.9,14.96]
[1643458437322,0.25,95.997,95.891,2.88057764]
[1643458437619,6.25,95.997,95.888,103.7]
[1643458437920,6.67641899,95.996,95.889,43.22695482]
[1643458438123,15.64,95.99,95.889,43.22695482]
[1643458438320,6.0,95.987,95.889,43.22695482]
[1643458438520,0.25,95.989,95.9,2.81101191]
[1643458438723,0.25,95.986,95.9,17.77101191]
[1643458438922,0.25,95.989,95.899,6.0]
[1643458439121,0.25,95.989,95.9,6.0]
[1643458439521,0.25,95.989,95.9,20.96]
[1643458439722,0.25,95.989,95.9,14.96]
[1643458439927,8.81924908,95.996,95.9,14.96]
[1643458440122,0.90576174,95.979,95.899,6.0]
[1643458440522,0.90576174,95.979,95.9,6.0]
[1643458441523,0.90576174,95.979,95.901,24.6285]
[1643458442428,1.15576174,95.979,95.901,24.6285]
[1643458442626,6.0,95.969,95.901,24.6285]
[1643458442828,0.25,95.968,95.901,24.6285]
[1643458445260,0.25,95.968,95.902,0.25]
[1643458445659,6.0,95.969,95.901,24.6285]
[1643458445866,6.0,95.969,95.902,0.25]
[1643458446066,0.90576174,95.979,95.901,24.6285]
[1643458446259,0.25,95.968,95.901,24.6285]
[1643458446459,0.90576174,95.979,95.901,24.6285]
[1643458446460,6.0,95.98,95.901,24.6285]
[1643458446659,2.82733068,96.101,95.911,6.0]
[1643458446860,14.96,96.05,95.92,14.96]
[1643458447064,2.82733068,96.112,95.921,23.5883]
[1643458447262,48.4335,96.047,95.94,14.96]
[1643458447461,7.03318981,96.046,95.941,68.16868187]
[1643458447663,7.03318981,96.046,95.941,68.41868187]
[1643458449065,6.0,96.036,95.942,103.7]
[1643458449264,0.25,96.035,95.943,0.25]
[1643458449863,6.0,96.036,95.943,0.25]
[1643458450064,19.81188722,96.083,95.952,6.0]
[1643458450268,47.8089,96.082,95.96,14.96]
[1643458450465,6.0,96.073,95.96,14.96]
[1643458450664,24.5508,96.109,95.97,6.0]
[1643458450866,6.0,96.099,95.98,14.96]
[1643458451064,1.52255929,96.089,95.98,14.96]
[1643458451564,1.52255929,96.089,95.981,0.25]
[1643458451565,6.0,96.079,95.981,0.25]
[1643458451765,6.0,96.079,95.981,3.06962984]
[1643458451967,6.0,96.079,95.981,0.25]
[1643458452167,6.0,96.079,95.982,2.81962984]
[1643458452366,6.0,96.079,95.983,0.25]
[1643458452769,0.25,96.078,95.983,0.25]
[1643458452969,0.25,96.078,95.982,2.81962984]
[1643458453568,0.25,96.078,95.99,15.621]
[1643458453767,0.25,96.108,95.991,48.1849]
[1643458453969,6.0,96.099,95.991,51.00452984]
[1643458454168,6.0,96.099,95.992,2.81962984]
[1643458454369,0.25,96.098,95.993,42.64241068]
[1643458454972,6.0,96.091,95.993,42.64241068]
[1643458455371,6.25,96.09,95.993,42.64241068]
[1643458455570,6.0,96.09,95.993,42.64241068]
[1643458456069,21.624,96.09,95.994,2.81962984]
[1643458456269,21.624,96.09,95.993,42.64241068]
[1643458456771,0.25,96.089,95.993,42.64241068]
[1643458458373,15.625,96.08,95.993,42.64241068]
[1643458458573,6.0,96.07,95.993,42.64241068]
[1643458458772,0.25,96.069,95.993,42.64241068]
[1643458459173,6.25,96.069,95.993,42.64241068]
[1643458459372,0.25,96.069,95.993,42.64241068]
[1643458459773,0.25,96.069,95.994,2.81962984]
[1643458459974,0.25,96.087,95.994,2.81962984]
[1643458460176,24.0,96.088,95.995,0.25]
[1643458460378,24.0,96.088,96.0,14.96]
[1643458460578,24.0,96.088,96.004,6.0]
[1643458460776,24.0,96.088,96.005,0.25]
[1643458461177,24.0,96.088,96.005,2.81962984]
[1643458461476,24.0,96.088,96.006,18.34777414]
[1643458461678,0.25,96.087,96.011,46.50270168]
[1643458461904,0.25,96.087,96.012,0.25]
[1643458462505,0.25,96.087,96.012,15.5281443]
[1643458462905,0.25,96.087,96.012,18.34777414]
[1643458463505,30.578,96.13,96.022,6.0]
[1643458463506,15.618,96.13,96.022,6.0]
[1643458463713,15.5126,96.133,96.03,14.96]
[1643458463904,15.5126,96.133,96.032,103.7]
[1643458464304,15.5126,96.133,96.033,37.24025296]
[1643458464504,15.5126,96.133,96.033,55.3380271]
[1643458464705,15.5126,96.133,96.034,18.09777414]
[1643458465006,15.5126,96.133,96.035,3.06962984]
[1643458465206,15.5126,96.133,96.035,18.34777414]
[1643458465503,15.5126,96.133,96.045,6.0]
[1643458465905,15.5126,96.133,96.046,24.34777414]
[1643458466106,15.5126,96.133,96.046,18.34777414]
[1643458466307,15.5126,96.133,96.047,15.2781443]
[1643458466505,15.5126,96.133,96.05,14.96]
[1643458466705,15.5126,96.133,96.05,30.571]
[1643458466908,15.5126,96.133,96.06,6.0]
[1643458467106,15.5126,96.133,96.07,14.96]
[1643458467306,15.5126,96.133,96.071,0.25]
[1643458467507,15.5126,96.133,96.071,61.44491071]
[1643458467905,15.5126,96.133,96.072,15.2781443]
[1643458468106,15.5326,96.171,96.072,18.10646444]
[1643458468310,15.5326,96.171,96.073,46.7865]
[1643458468507,6.0,96.161,96.073,75.8846443]
[1643458468806,6.0,96.161,96.074,15.2781443]
[1643458469206,0.25,96.16,96.074,15.2781443]
[1643458469404,6.0,96.157,96.074,15.2781443]
[1643458469806,0.25,96.156,96.074,15.2781443]
[1643458470210,0.25,96.156,96.073,46.5365]
[1643458470211,0.25,96.156,96.071,45.91676641]
[1643458470405,3.20669142,96.156,96.071,45.91676641]
[1643458470605,110.58731724,96.145,96.071,45.91676641]
[1643458470807,0.25,96.144,96.071,45.91676641]
[1643458471009,3.20669142,96.144,96.071,45.91676641]
[1643458471206,0.25,96.144,96.071,45.91676641]
[1643458471409,6.0,96.134,96.071,45.91676641]
[1643458471807,0.25,96.133,96.071,45.91676641]
[1643458472809,6.0,96.136,96.071,45.91676641]
[1643458473309,0.25,96.135,96.071,45.91676641]
[1643458473512,3.20669142,96.135,96.033,23.7576]
[1643458473709,25.78839142,96.135,96.033,23.7576]
[1643458473908,6.0,96.125,96.033,23.7576]
[1643458474312,0.25,96.124,96.033,23.7576]
[1643458474610,0.70591771,96.124,96.034,34.36805227]
[1643458475409,0.70591771,96.124,96.035,0.25]
[1643458475808,0.70591771,96.124,96.034,34.36805227]
[1643458479410,6.0,96.12,96.034,34.36805227]
[1643458479911,0.25,96.119,96.034,34.36805227]
[1643458480114,0.25,96.119,96.035,0.25]
[1643458481111,0.25,96.119,96.036,17.00837078]
[1643458481312,0.25,96.134,96.04,14.96]
[1643458481711,6.0,96.125,96.04,14.96]
[1643458481911,7.46477018,96.124,96.04,14.96]
[1643458482110,6.0,96.114,96.04,14.96]
[1643458482310,0.25,96.113,96.04,14.96]
[1643458482512,6.0,96.12,96.04,14.96]
[1643458482912,0.25,96.119,96.04,14.96]
[1643458483513,6.0,96.115,96.04,14.96]
[1643458483912,0.25,96.114,96.04,14.96]
[1643458484114,6.25,96.114,96.04,14.96]
[1643458484513,0.25,96.114,96.04,14.96]
[1643458484811,6.0,96.104,96.04,14.96]
[1643458485012,0.25,96.114,96.04,14.96]
[1643458485616,0.25,96.114,96.041,0.25]
[1643458485817,0.25,96.134,96.041,0.25]
[1643458486018,0.25,96.134,96.05,6.0]
[1643458486217,0.25,96.134,96.052,36.03228097]
[1643458486417,0.25,96.134,96.052,42.03228097]
[1643458486622,0.25,96.134,96.053,0.25]
[1643458487119,0.25,96.134,96.053,3.07832014]
[1643458487318,0.25,96.134,96.054,2.82832014]
[1643458487720,2.95669142,96.167,96.055,0.25]
[1643458487919,15.61,96.18,96.07,14.96]
[1643458488120,15.61,96.18,96.08,6.0]
[1643458488320,15.61,96.18,96.081,0.25]
[1643458488522,6.0,96.17,96.081,0.25]
[1643458488920,6.0,96.17,96.081,41.41536372]
[1643458489122,6.0,96.165,96.081,41.41536372]
[1643458489322,0.25,96.164,96.082,23.0321]
[1643458489523,6.25,96.164,96.082,23.0321]
[1643458489722,6.25,96.164,96.083,0.25]
[1643458490523,6.0,96.16,96.083,0.25]
[1643458490825,0.25,96.159,96.083,0.25]
[1643458492123,0.25,96.162,96.083,0.25]
[1643458492325,0.25,96.163,96.083,0.25]
[1643458493323,6.0,96.164,96.083,0.25]
[1643458493724,6.0,96.164,96.084,2.82832014]
[1643458494123,6.0,96.188,96.085,0.25]
[1643458494328,23.8853,96.187,96.085,0.25]
[1643458494525,6.0,96.177,96.085,0.25]
[1643458494926,0.25,96.176,96.085,0.25]
[1643458495527,0.25,96.176,96.084,14.10782841]
[1643458497130,6.25,96.176,96.084,14.10782841]
[1643458497327,24.8419,96.175,96.084,14.10782841]
[1643458497527,6.0,96.165,96.084,14.10782841]
[1643458497827,0.25,96.164,96.084,14.10782841]
[1643458499631,6.0,96.161,96.084,14.10782841]
[1643458499829,0.25,96.16,96.084,14.10782841]
[1643458501031,0.25,96.164,96.084,14.10782841]
[1643458501431,0.25,96.164,96.085,0.25]
[1643458502636,0.25,96.164,96.084,14.10782841]
[1643458503257,8.26880161,96.164,96.084,14.10782841]
[1643458503657,6.0,96.154,96.084,13.10782841]
[1643458503857,0.25,96.153,96.084,13.10782841]
[1643458505358,0.25,96.153,96.082,23.0321]
[1643458505958,6.25,96.153,96.081,35.16536372]
[1643458506960,6.25,96.153,96.07,14.96]
[1643458507163,6.25,96.153,96.046,19.63246781]
[1643458507164,6.25,96.153,96.05,14.96]
[1643458507466,22.6724,96.152,96.05,14.96]
[1643458507861,6.0,96.142,96.05,14.96]
[1643458508062,1.45620921,96.141,96.051,44.55720083]
[1643458508268,1.70620921,96.141,96.051,44.55720083]
[1643458508466,6.0,96.131,96.051,44.55720083]
[1643458508664,6.0,96.131,96.052,23.2143]
[1643458508864,0.25,96.13,96.052,23.2143]
[1643458509066,6.0,96.131,96.052,23.2143]
[1643458509770,6.0,96.131,96.053,0.25]
[1643458509970,6.0,96.131,96.052,23.2143]
[1643458510371,0.25,96.13,96.052,23.2143]
[1643458511070,0.25,96.13,96.051,44.55720083]
[1643458511272,15.868,96.13,96.051,44.55720083]
[1643458511669,7.63367407,96.119,96.051,44.55720083]
[1643458511869,0.25,96.118,96.02,14.96]
[1643458512069,6.0,96.109,96.02,14.96]
[1643458512269,0.25,96.108,96.02,14.96]
[1643458512472,6.25,96.108,96.02,14.96]
[1643458512669,6.0,96.107,96.02,14.96]
[1643458512870,6.0,96.098,96.021,37.21222914]
[1643458513072,6.0,96.092,96.021,37.21222914]
[1643458513273,0.25,96.091,96.022,0.25]
[1643458514170,0.25,96.091,96.021,37.21222914]
[1643458517375,103.95,96.091,96.021,37.21222914]
[1643458517578,103.7,96.08,96.0,24.1696]
[1643458517775,0.25,96.079,95.982,2.88057764]
[1643458517975,103.7,96.069,95.97,14.96]
[1643458518174,103.7,96.069,95.971,24.9512]
[1643458518374,6.0,96.059,95.971,24.9512]
[1643458518575,30.40158623,96.058,95.984,6.0]
[1643458518775,6.0,96.048,95.975,44.45986096]
[1643458519179,0.25,96.047,95.975,44.45986096]
[1643458520180,15.63,96.05,95.975,44.45986096]
[1643458520380,0.25,96.057,95.975,44.45986096]
[1643458520381,0.25,96.049,95.975,44.45986096]
[1643458521081,6.0,96.048,95.975,44.45986096]
[1643458521280,0.25,96.047,95.975,44.45986096]
[1643458522382,0.25,96.047,95.976,0.25]
[1643458522685,0.25,96.047,95.979,1.43869145]
[1643458522882,0.25,96.047,95.98,0.25]
[1643458523483,0.25,96.047,95.981,2.82831786]
[1643458523885,9.64056172,96.057,95.986,1.43869145]
[1643458524085,6.0,96.047,95.986,1.43869145]
[1643458524285,0.25,96.046,95.986,1.43869145]
[1643458524485,0.25,96.046,95.983,1.43869145]
[1643458524685,6.0,96.058,95.982,1.43869145]
[1643458524887,6.0,96.058,95.98,16.39869145]
[1643458525088,6.0,96.058,95.98,14.96]
[1643458525287,15.624,96.09,95.981,19.73802337]
[1643458525486,15.624,96.09,95.982,1.43869145]
[1643458525685,15.624,96.09,95.983,23.4671]
[1643458525886,15.624,96.09,95.983,23.7171]
[1643458526085,8.79948372,96.088,95.984,1.43869145]
[1643458526284,8.79948372,96.088,95.985,0.25]
[1643458526485,6.0,96.078,95.985,0.25]
[1643458526886,0.25,96.077,95.985,0.25]
[1643458527186,15.621,96.11,96.005,1.43869145]
[1643458527386,15.621,96.11,96.013,1.43869145]
[1643458527588,6.0,96.1,96.013,1.43869145]
[1643458527790,15.621,96.11,96.017,1.43869145]
[1643458527989,6.9886327,96.099,96.012,42.73023989]
[1643458528489,0.25,96.098,96.012,42.73023989]
[1643458528688,6.0,96.089,96.012,42.73023989]
[1643458528888,0.25,96.088,96.012,42.73023989]
[1643458529087,6.25,96.088,96.012,42.73023989]
[1643458529290,6.0,96.087,96.012,42.73023989]
[1643458529687,0.25,96.086,96.012,42.73023989]
[1643458530291,0.25,96.086,96.013,0.25]
[1643458530689,0.25,96.087,96.012,44.16893134]
[1643458530890,0.25,96.097,96.013,1.68869145]
[1643458531190,0.25,96.097,96.014,23.0655]
[1643458531390,0.25,96.097,96.015,0.25]
[1643458531792,0.25,96.097,96.014,23.0655]
[1643458532391,0.25,96.097,96.015,0.25]
[1643458532594,0.25,96.097,96.02,14.96]
[1643458533893,0.25,96.097,96.02,16.39869145]
[1643458534695,0.25,96.097,96.021,1.43869145]
[1643458535898,0.25,96.097,96.025,1.43869145]
[1643458536698,0.25,96.097,96.03,14.96]
[1643458537320,0.25,96.097,96.031,45.37224759]
[1643458539722,0.25,96.097,96.031,46.81093904]
[1643458539921,2.95669142,96.121,96.031,46.81093904]
[1643458540123,15.618,96.13,96.039,1.43869145]
[1643458540321,1.42971408,96.147,96.039,1.43869145]
[1643458540322,1.42971408,96.147,96.04,15.21]
[1643458540524,6.0,96.137,96.057,1.43869145]
[1643458540725,6.0,96.137,96.059,1.43869145]
[1643458540922,6.0,96.14,96.06,46.05881849]
[1643458541123,6.0,96.136,96.063,1.43869145]
[1643458541325,0.25,96.135,96.064,0.25]
[1643458541724,0.25,96.135,96.064,1.68869145]
[1643458542125,0.25,96.135,96.065,1.43869145]
[1643458542327,0.25,96.135,96.066,0.25]
[1643458542525,0.25,96.15,96.066,0.25]
[1643458542726,0.25,96.15,96.07,14.96]
[1643458543127,0.25,96.15,96.071,2.82831786]
[1643458543525,6.0,96.146,96.07,14.96]
[1643458543930,0.25,96.145,96.071,2.82831786]
[1643458544424,0.25,96.145,96.07,14.96]
[1643458545029,0.25,96.15,96.07,14.96]
[1643458545631,0.25,96.15,96.07,33.39631786]
[1643458545928,0.25,96.15,96.071,19.73802337]
[1643458546130,0.25,96.15,96.071,19.48802337]
[1643458546727,24.1402,96.15,96.072,0.25]
[1643458546927,24.1402,96.15,96.071,19.48802337]
[1643458547131,24.1402,96.15,96.07,14.96]
[1643458549227,24.1402,96.15,96.071,2.82831786]
[1643458549429,24.1402,96.15,96.07,14.96]
[1643458552331,0.25,96.15,96.07,14.96]
[1643458552533,0.25,96.15,96.08,6.0]
[1643458552731,0.25,96.15,96.08,20.96]
[1643458552930,0.25,96.15,96.081,6.0]
[1643458553130,0.25,96.15,96.08,14.96]
[1643458553331,0.25,96.15,96.081,41.78333469]
[1643458554134,6.25,96.15,96.081,41.78333469]
[1643458554940,6.0,96.15,96.081,43.22202614]
[1643458555135,6.0,96.15,96.081,41.78333469]
[1643458555337,6.0,96.15,96.082,0.25]
[1643458556142,0.25,96.149,96.082,0.25]
[1643458556740,0.25,96.149,96.082,23.2277]
[1643458556940,0.25,96.161,96.082,23.2277]
[1643458558140,0.25,96.161,96.082,22.9777]
[1643458558541,6.0,96.16,96.082,22.9777]
[1643458558942,6.0,96.151,96.082,22.9777]
[1643458559141,1.72265102,96.15,96.082,22.9777]
[1643458559343,1.97265102,96.15,96.082,22.9777]
[1643458559544,6.0,96.14,96.082,22.9777]
[1643458559943,0.25,96.139,96.082,22.9777]
[1643458560547,0.25,96.139,96.063,1.43869145]
[1643458560548,3.20669142,96.139,96.063,1.43869145]
[1643458560743,24.7257,96.138,96.056,1.43869145]
[1643458560947,6.0,96.129,96.057,1.43869145]
[1643458561144,24.7257,96.138,96.052,22.5546]
[1643458561145,6.0,96.128,96.052,22.5546]
[1643458561348,6.25,96.128,96.052,22.5546]
[1643458561548,7.7523598,96.127,96.053,35.87128269]
[1643458561760,0.25,96.126,96.053,35.87128269]
[1643458561951,6.0,96.117,96.053,35.87128269]
[1643458562350,0.25,96.116,96.053,35.87128269]
[1643458563571,6.25,96.116,96.053,35.87128269]
[1643458564575,6.25,96.116,96.054,0.25]
[1643458564974,0.25,96.116,96.054,0.25]
[1643458565174,33.10668711,96.139,96.053,37.30997414]
[1643458565380,33.10668711,96.139,96.056,1.43869145]
[1643458565574,6.0,96.129,96.054,1.43869145]
[1643458565774,0.25,96.128,96.057,1.43869145]
[1643458566277,0.25,96.128,96.053,37.30997414]
[1643458566877,0.25,96.128,96.055,1.43869145]
[1643458567176,0.25,96.128,96.058,1.43869145]
[1643458567376,0.25,96.128,96.057,1.43869145]
[1643458567777,0.25,96.128,96.058,1.43869145]
[1643458568078,0.25,96.128,96.057,1.43869145]
[1643458568477,8.30846128,96.128,96.056,1.43869145]
[1643458568679,8.30846128,96.128,96.053,37.30997414]
[1643458568878,6.0,96.118,96.053,35.87128269]
[1643458569280,0.25,96.117,96.053,35.87128269]
[1643458569479,6.25,96.117,96.053,35.87128269]
[1643458569879,6.25,96.117,96.053,37.30997414]
[1643458570080,6.25,96.117,96.053,35.87128269]
[1643458572182,103.7,96.105,96.02,2.88057764]
[1643458572384,21.7,95.968,95.959,4.31852135]
[1643458572582,21.7,95.968,95.927,4.31852135]
[1643458572783,0.25,95.967,95.927,4.31852135]
[1643458572984,0.25,95.967,95.939,2.893381]
[1643458573384,21.7,95.968,95.939,2.893381]
[1643458573985,21.7,95.968,95.927,43.10779109]
[1643458574387,0.25,95.967,95.927,43.10779109]
[1643458574588,21.7,95.968,95.927,43.10779109]
[1643458574785,15.637,96.0,95.939,65.0]
[1643458574987,15.634,96.02,95.939,65.0]
[1643458575186,15.634,96.02,95.949,6.0]
[1643458575386,0.25,96.019,95.949,6.0]
[1643458575587,0.25,96.019,95.939,65.0]
[1643458576187,0.25,96.019,95.93,46.4334]
[1643458576486,15.635,96.01,95.93,46.4334]
[1643458576688,15.635,96.01,95.882,7.31852135]
[1643458576689,1.25190838,96.009,95.91,38.9308]
[1643458576888,1.50190838,96.009,95.928,0.25]
[1643458577089,6.0,95.999,95.91,14.96]
[1643458577287,6.0,95.999,95.874,23.206]
[1643458577288,0.25,95.998,95.9,14.96]
[1643458578090,7.19570916,95.989,95.9,14.96]
[1643458578288,0.25,95.988,95.901,23.66]
[1643458579892,0.25,95.988,95.91,14.96]
[1643458580291,0.25,95.989,95.91,14.96]
[1643458580891,7.70663736,95.989,95.91,14.96]
[1643458583296,0.25,95.989,95.91,14.96]
[1643458583696,0.25,96.007,95.902,103.7]
[1643458584096,0.25,96.007,95.928,0.25]
[1643458585097,67.075,96.04,95.928,0.25]
[1643458585298,4.24099602,96.164,95.94,14.96]
[1643458585299,22.7205,96.059,95.94,14.96]
[1643458585499,22.7205,96.059,95.95,6.0]
[1643458585698,22.7205,96.059,95.95,20.96]
[1643458585903,22.7205,96.059,95.951,6.25]
[1643458586099,15.628,96.05,95.96,6.0]
[1643458586502,15.628,96.05,95.953,23.3815]
[1643458586701,15.628,96.05,95.954,0.25]
[1643458586903,7.67425816,96.058,95.96,15.626]
[1643458587105,52.093,96.08,95.96,36.586]
[1643458587302,52.093,96.08,95.961,22.8945]
[1643458587505,6.0,96.07,95.961,22.8945]
[1643458587801,23.7711,96.089,95.961,22.8945]
[1643458587802,23.7711,96.089,95.97,6.0]